[Event "Titled Tuesday Blitz January 31 Late 2023"]
[White "Fajdetic, Hrvoje"]
[Black "Della Corte, Alessandro"]
[WhiteFideId "14501945"]
[BlackFideId "813540"]
[WhiteElo "2151"]
[BlackElo "2160"]
[Result "1-0"]
[Round "03"]
[TimeControl "180+2"]
[Date "2023.01.31"]
[WhiteClock "0:01:00"]
[BlackClock "0:01:56"]

1. f4 {[%clk 0:02:58]}  f5 {[%clk 0:02:58]} 2. b3 {[%clk 0:02:57]}  b6 {[%clk 0:02:57]} 3. Bb2 {[%clk 0:02:56]}  Bb7 {[%clk 0:02:58]} 4. e3 {[%clk 0:02:56]}  Nf6 {[%clk 0:02:59]} 5. Nf3 {[%clk 0:02:56]}  e6 {[%clk 0:02:59]} 6. Be2 {[%clk 0:02:55]}  Be7 {[%clk 0:02:59]} 7. O-O {[%clk 0:02:54]}  O-O {[%clk 0:02:59]} 8. a4 {[%clk 0:02:51]}  a6 {[%clk 0:02:58]} 9. d3 {[%clk 0:02:49]}  d6 {[%clk 0:02:54]} 10. Na3 {[%clk 0:02:30]}  Qe8 {[%clk 0:02:52]} 11. Nc4 {[%clk 0:02:19]}  Nbd7 {[%clk 0:02:52]} 12. Qe1 {[%clk 0:02:04]}  Bd8 {[%clk 0:02:43]} 13. Bd1 {[%clk 0:01:57]}  Qg6 {[%clk 0:02:35]} 14. Qg3 {[%clk 0:01:51]}  Qxg3 {[%clk 0:02:35]} 15. hxg3 {[%clk 0:01:52]}  Ng4 {[%clk 0:02:34]} 16. Re1 {[%clk 0:01:43]}  h6 {[%clk 0:02:31]} 17. e4 {[%clk 0:01:39]}  fxe4 {[%clk 0:02:22]} 18. dxe4 {[%clk 0:01:40]}  Bf6 {[%clk 0:02:21]} 19. Nd4 {[%clk 0:01:32]}  Rae8 {[%clk 0:02:16]} 20. Bxg4 {[%clk 0:01:30]}  Nc5 {[%clk 0:02:10]} 21. e5 {[%clk 0:01:16]}  dxe5 {[%clk 0:02:06]} 22. Nxe5 {[%clk 0:01:14]}  Ne4 {[%clk 0:01:59]} 23. Bxe6+ {[%clk 0:01:00]}  Kh7 {[%clk 0:01:56]} 24. Bf5+ {[%clk 0:01:00]}  Kg8 {[%clk 0:01:56]} 25. Bxe4 {[%clk 0:01:00]} 1-0


[Site "https://www.chess.com"]

[Event "Titled Tuesday Blitz January 31 Late 2023"]
[White "Backsten, Jan"]
[Black "Floresvillar Gonzalez, Luis Migu"]
[WhiteFideId "1735381"]
[BlackFideId "5100542"]
[WhiteElo "2029"]
[BlackElo "2043"]
[Result "1-0"]
[Round "03"]
[TimeControl "180+2"]
[Date "2023.01.31"]
[WhiteClock "0:00:49"]
[BlackClock "0:01:01"]

1. e4 {[%clk 0:03:00]}  d6 {[%clk 0:02:59]} 2. d4 {[%clk 0:03:00]}  Nf6 {[%clk 0:02:58]} 3. Nc3 {[%clk 0:03:01]}  g6 {[%clk 0:02:59]} 4. Be3 {[%clk 0:03:00]}  Bg7 {[%clk 0:02:59]} 5. Qd2 {[%clk 0:03:00]}  O-O {[%clk 0:02:59]} 6. O-O-O {[%clk 0:03:00]}  Ng4 {[%clk 0:02:59]} 7. Bg5 {[%clk 0:02:59]}  h6 {[%clk 0:02:58]} 8. Bh4 {[%clk 0:02:59]}  g5 {[%clk 0:02:57]} 9. Bg3 {[%clk 0:02:59]}  Nc6 {[%clk 0:02:57]} 10. d5 {[%clk 0:02:51]}  Nce5 {[%clk 0:02:50]} 11. h4 {[%clk 0:02:49]}  c6 {[%clk 0:02:41]} 12. f3 {[%clk 0:02:35]}  gxh4 {[%clk 0:02:38]} 13. Rxh4 {[%clk 0:02:27]}  Nf6 {[%clk 0:02:35]} 14. dxc6 {[%clk 0:02:16]}  bxc6 {[%clk 0:02:34]} 15. Bxe5 {[%clk 0:02:14]}  Nxe4 {[%clk 0:02:20]} 16. Rxe4 {[%clk 0:02:02]}  Bxe5 {[%clk 0:02:11]} 17. Rxe5 {[%clk 0:01:56]}  Kg7 {[%clk 0:02:04]} 18. Rh5 {[%clk 0:01:48]}  Rh8 {[%clk 0:02:02]} 19. Bd3 {[%clk 0:01:32]}  Be6 {[%clk 0:02:01]} 20. Bf5 {[%clk 0:01:27]}  Qa5 {[%clk 0:01:53]} 21. Qd4+ {[%clk 0:01:06]}  Qe5 {[%clk 0:01:24]} 22. Qxe5+ {[%clk 0:01:06]}  dxe5 {[%clk 0:01:23]} 23. Bxe6 {[%clk 0:01:07]}  fxe6 {[%clk 0:01:23]} 24. Rxe5 {[%clk 0:01:07]}  Kf7 {[%clk 0:01:20]} 25. Nge2 {[%clk 0:01:05]}  Rhg8 {[%clk 0:01:19]} 26. Nf4 {[%clk 0:01:05]}  Rab8 {[%clk 0:01:14]} 27. g4 {[%clk 0:01:03]}  Kf6 {[%clk 0:01:09]} 28. Rxe6+ {[%clk 0:01:02]}  Kg5 {[%clk 0:01:09]} 29. Nh3+ {[%clk 0:01:00]}  Kh4 {[%clk 0:01:08]} 30. Rxh6+ {[%clk 0:01:00]}  Kg3 {[%clk 0:01:08]} 31. Rf1 {[%clk 0:00:53]}  Kg2 {[%clk 0:01:01]} 32. Rf2+ {[%clk 0:00:52]}  Kg3 {[%clk 0:01:01]} 33. Ne2# {[%clk 0:00:49]} 1-0


[Site "https://www.chess.com"]

[Event "Titled Tuesday Blitz January 31 Late 2023"]
[White "Suarez, Mauricio Josue"]
[Black "Tinmaz, Kerem"]
[WhiteFideId "144258"]
[BlackFideId "44559151"]
[WhiteElo "2164"]
[BlackElo "2177"]
[Result "1/2-1/2"]
[Round "03"]
[TimeControl "180+2"]
[Date "2023.01.31"]
[WhiteClock "0:00:10"]
[BlackClock "0:00:06"]

1. d4 {[%clk 0:03:00]}  d5 {[%clk 0:02:59]} 2. Nf3 {[%clk 0:03:00]}  Nf6 {[%clk 0:03:00]} 3. c4 {[%clk 0:03:00]}  c6 {[%clk 0:03:00]} 4. e3 {[%clk 0:03:00]}  Bf5 {[%clk 0:03:00]} 5. Nc3 {[%clk 0:03:00]}  e6 {[%clk 0:03:00]} 6. Bd3 {[%clk 0:03:01]}  Bg6 {[%clk 0:02:57]} 7. O-O {[%clk 0:03:01]}  Nbd7 {[%clk 0:02:56]} 8. Qe2 {[%clk 0:03:01]}  Bd6 {[%clk 0:02:55]} 9. e4 {[%clk 0:03:01]}  dxe4 {[%clk 0:02:55]} 10. Nxe4 {[%clk 0:03:01]}  Nxe4 {[%clk 0:02:54]} 11. Bxe4 {[%clk 0:03:02]}  Bxe4 {[%clk 0:02:47]} 12. Qxe4 {[%clk 0:03:03]}  Nf6 {[%clk 0:02:48]} 13. Qe2 {[%clk 0:03:03]}  O-O {[%clk 0:02:48]} 14. Rd1 {[%clk 0:03:03]}  Qe7 {[%clk 0:02:44]} 15. b3 {[%clk 0:03:01]}  Rfd8 {[%clk 0:02:42]} 16. Bb2 {[%clk 0:03:01]}  Ba3 {[%clk 0:02:41]} 17. Rac1 {[%clk 0:03:01]}  Bxb2 {[%clk 0:02:40]} 18. Qxb2 {[%clk 0:03:02]}  a5 {[%clk 0:02:39]} 19. h3 {[%clk 0:02:58]}  a4 {[%clk 0:02:39]} 20. Rd3 {[%clk 0:02:58]}  axb3 {[%clk 0:02:21]} 21. axb3 {[%clk 0:02:59]}  Qa3 {[%clk 0:02:16]} 22. Qxa3 {[%clk 0:02:15]}  Rxa3 {[%clk 0:02:17]} 23. Rc2 {[%clk 0:02:00]}  h6 {[%clk 0:01:43]} 24. Kf1 {[%clk 0:01:56]}  Ra1+ {[%clk 0:01:23]} 25. Ke2 {[%clk 0:01:56]}  Rda8 {[%clk 0:01:23]} 26. Rd1 {[%clk 0:01:50]}  Rxd1 {[%clk 0:01:13]} 27. Kxd1 {[%clk 0:01:51]}  Ra1+ {[%clk 0:01:14]} 28. Kd2 {[%clk 0:01:45]}  Rb1 {[%clk 0:01:06]} 29. Kc3 {[%clk 0:01:43]}  Ne4+ {[%clk 0:01:01]} 30. Kb4 {[%clk 0:01:43]}  b6 {[%clk 0:00:36]} 31. Nd2 {[%clk 0:01:23]}  Nxd2 {[%clk 0:00:31]} 32. Rxd2 {[%clk 0:01:24]}  Kf8 {[%clk 0:00:30]} 33. Rd3 {[%clk 0:01:13]}  Ke7 {[%clk 0:00:29]} 34. c5 {[%clk 0:01:11]}  bxc5+ {[%clk 0:00:23]} 35. Kxc5 {[%clk 0:01:09]}  Kd7 {[%clk 0:00:20]} 36. h4 {[%clk 0:00:47]}  Rc1+ {[%clk 0:00:19]} 37. Kb4 {[%clk 0:00:47]}  Kd6 {[%clk 0:00:19]} 38. h5 {[%clk 0:00:42]}  Rc2 {[%clk 0:00:17]} 39. Rg3 {[%clk 0:00:35]}  Rxf2 {[%clk 0:00:15]} 40. Rxg7 {[%clk 0:00:36]}  Rf4 {[%clk 0:00:07]} 41. Kc3 {[%clk 0:00:34]}  Kd5 {[%clk 0:00:07]} 42. Rg8 {[%clk 0:00:32]}  Rh4 {[%clk 0:00:03]} 43. g4 {[%clk 0:00:32]}  Rh3+ {[%clk 0:00:03]} 44. Kb4 {[%clk 0:00:28]}  Kxd4 {[%clk 0:00:04]} 45. Rd8+ {[%clk 0:00:25]}  Ke5 {[%clk 0:00:05]} 46. Rh8 {[%clk 0:00:25]}  Kf4 {[%clk 0:00:03]} 47. Rxh6 {[%clk 0:00:25]}  Kxg4 {[%clk 0:00:04]} 48. Rf6 {[%clk 0:00:20]}  Rxh5 {[%clk 0:00:03]} 49. Rxf7 {[%clk 0:00:20]}  Rb5+ {[%clk 0:00:03]} 50. Kc4 {[%clk 0:00:20]}  e5 {[%clk 0:00:04]} 51. Rf6 {[%clk 0:00:19]}  Rb6 {[%clk 0:00:02]} 52. b4 {[%clk 0:00:15]}  e4 {[%clk 0:00:02]} 53. Kc5 {[%clk 0:00:14]}  Rb5+ {[%clk 0:00:02]} 54. Kc4 {[%clk 0:00:15]}  Rb6 {[%clk 0:00:02]} 55. Kc5 {[%clk 0:00:15]}  Rb5+ {[%clk 0:00:01]} 56. Kc4 {[%clk 0:00:10]}  e3 {[%clk 0:00:02]} 57. Rxc6 {[%clk 0:00:08]}  Re5 {[%clk 0:00:03]} 58. Rg6+ {[%clk 0:00:06]}  Kf3 {[%clk 0:00:02]} 59. Rg1 {[%clk 0:00:07]}  Kf2 {[%clk 0:00:02]} 60. Rc1 {[%clk 0:00:07]}  e2 {[%clk 0:00:02]} 61. b5 {[%clk 0:00:07]}  e1=Q {[%clk 0:00:02]} 62. Rxe1 {[%clk 0:00:08]}  Rxe1 {[%clk 0:00:03]} 63. b6 {[%clk 0:00:08]}  Rb1 {[%clk 0:00:03]} 64. Kc5 {[%clk 0:00:09]}  Ke3 {[%clk 0:00:04]} 65. Kc6 {[%clk 0:00:09]}  Ke4 {[%clk 0:00:05]} 66. b7 {[%clk 0:00:10]}  Ke5 {[%clk 0:00:05]} 67. Kc7 {[%clk 0:00:10]}  Rc1+ {[%clk 0:00:05]} 68. Kd7 {[%clk 0:00:11]}  Rd1+ {[%clk 0:00:05]} 69. Kc7 {[%clk 0:00:11]}  Rc1+ {[%clk 0:00:06]} 70. Kd7 {[%clk 0:00:09]}  Rb1 {[%clk 0:00:06]} 71. Kc7 {[%clk 0:00:10]}  Rc1+ {[%clk 0:00:06]} 1/2-1/2


[Site "https://www.chess.com"]

[Event "Titled Tuesday Blitz January 31 Late 2023"]
[White "Grot, Blazej"]
[Black "Araujo, Everson De Moura"]
[WhiteFideId "21835845"]
[BlackFideId "22737197"]
[WhiteElo "1990"]
[BlackElo "1944"]
[Result "1-0"]
[Round "03"]
[TimeControl "180+2"]
[Date "2023.01.31"]
[WhiteClock "0:00:07"]
[BlackClock "0:00:07"]

1. e4 {[%clk 0:03:00]}  e6 {[%clk 0:02:57]} 2. d3 {[%clk 0:02:55]}  d5 {[%clk 0:02:58]} 3. Nd2 {[%clk 0:02:55]}  Nf6 {[%clk 0:02:57]} 4. Ngf3 {[%clk 0:02:56]}  c5 {[%clk 0:02:57]} 5. g3 {[%clk 0:02:56]}  Be7 {[%clk 0:02:56]} 6. Bg2 {[%clk 0:02:56]}  Nc6 {[%clk 0:02:57]} 7. O-O {[%clk 0:02:57]}  b5 {[%clk 0:02:57]} 8. Re1 {[%clk 0:02:57]}  O-O {[%clk 0:02:57]} 9. Nf1 {[%clk 0:02:57]}  a5 {[%clk 0:02:55]} 10. h4 {[%clk 0:02:57]}  Qc7 {[%clk 0:02:54]} 11. N1h2 {[%clk 0:02:57]}  Ba6 {[%clk 0:02:54]} 12. e5 {[%clk 0:02:56]}  Nd7 {[%clk 0:02:54]} 13. Bf4 {[%clk 0:02:57]}  Rfc8 {[%clk 0:02:52]} 14. h5 {[%clk 0:02:57]}  h6 {[%clk 0:02:51]} 15. Ng4 {[%clk 0:02:57]}  Bf8 {[%clk 0:02:52]} 16. Nh4 {[%clk 0:02:52]}  Qd8 {[%clk 0:02:48]} 17. Qd2 {[%clk 0:02:51]}  Ra7 {[%clk 0:02:44]} 18. Bh3 {[%clk 0:02:40]}  a4 {[%clk 0:02:39]} 19. a3 {[%clk 0:02:40]}  Nd4 {[%clk 0:02:31]} 20. Kg2 {[%clk 0:02:29]}  b4 {[%clk 0:02:24]} 21. axb4 {[%clk 0:02:27]}  cxb4 {[%clk 0:02:25]} 22. Rxa4 {[%clk 0:02:27]}  Rxc2 {[%clk 0:02:25]} 23. Qe3 {[%clk 0:02:24]}  Bc5 {[%clk 0:02:04]} 24. Rea1 {[%clk 0:02:19]}  Nf5 {[%clk 0:01:57]} 25. Qe1 {[%clk 0:02:12]}  Nxh4+ {[%clk 0:01:54]} 26. gxh4 {[%clk 0:02:13]}  Qb6 {[%clk 0:01:25]} 27. Be3 {[%clk 0:02:05]}  d4 {[%clk 0:01:22]} 28. Bxh6 {[%clk 0:01:58]}  Bb7+ {[%clk 0:01:19]} 29. Kg1 {[%clk 0:01:50]}  Qc6 {[%clk 0:01:13]} 30. Qe4 {[%clk 0:01:16]}  Rxa4 {[%clk 0:00:31]} 31. Rxa4 {[%clk 0:01:13]}  Qxe4 {[%clk 0:00:16]} 32. dxe4 {[%clk 0:01:10]}  Bxe4 {[%clk 0:00:17]} 33. Bf4 {[%clk 0:00:59]}  Rxb2 {[%clk 0:00:15]} 34. h6 {[%clk 0:00:57]}  Rb1+ {[%clk 0:00:14]} 35. Kh2 {[%clk 0:00:54]}  Rh1+ {[%clk 0:00:15]} 36. Kg3 {[%clk 0:00:54]}  Nb6 {[%clk 0:00:13]} 37. Ra7 {[%clk 0:00:50]}  Nd5 {[%clk 0:00:12]} 38. Ra8+ {[%clk 0:00:44]}  Kh7 {[%clk 0:00:12]} 39. hxg7 {[%clk 0:00:45]}  Kxg7 {[%clk 0:00:12]} 40. Bh6+ {[%clk 0:00:21]}  Kh7 {[%clk 0:00:12]} 41. Rf8 {[%clk 0:00:21]}  Bxf8 {[%clk 0:00:09]} 42. Bxf8 {[%clk 0:00:20]}  Ne7 {[%clk 0:00:09]} 43. Bxe7 {[%clk 0:00:17]}  b3 {[%clk 0:00:10]} 44. Nf6+ {[%clk 0:00:15]}  Kg6 {[%clk 0:00:09]} 45. Nxe4 {[%clk 0:00:16]}  b2 {[%clk 0:00:09]} 46. Nd2 {[%clk 0:00:15]}  b1=Q {[%clk 0:00:09]} 47. Nxb1 {[%clk 0:00:15]}  Rxb1 {[%clk 0:00:10]} 48. Bg2 {[%clk 0:00:15]}  Rb3+ {[%clk 0:00:10]} 49. Kg4 {[%clk 0:00:14]}  Rb5 {[%clk 0:00:11]} 50. f4 {[%clk 0:00:14]}  d3 {[%clk 0:00:11]} 51. Be4+ {[%clk 0:00:14]}  Kg7 {[%clk 0:00:11]} 52. Bxd3 {[%clk 0:00:14]}  Rb7 {[%clk 0:00:11]} 53. Bf6+ {[%clk 0:00:14]}  Kg8 {[%clk 0:00:10]} 54. h5 {[%clk 0:00:14]}  Rb3 {[%clk 0:00:11]} 55. Be4 {[%clk 0:00:14]}  Rb4 {[%clk 0:00:11]} 56. Bc2 {[%clk 0:00:09]}  Rb2 {[%clk 0:00:11]} 57. Be4 {[%clk 0:00:08]}  Re2 {[%clk 0:00:08]} 58. Bf3 {[%clk 0:00:09]}  Re1 {[%clk 0:00:08]} 59. h6 {[%clk 0:00:09]}  Rg1+ {[%clk 0:00:08]} 60. Kh3 {[%clk 0:00:08]}  Kh7 {[%clk 0:00:09]} 61. Bg5 {[%clk 0:00:07]}  Re1 {[%clk 0:00:08]} 62. Kg3 {[%clk 0:00:05]}  Rg1+ {[%clk 0:00:07]} 63. Kf2 {[%clk 0:00:06]}  Ra1 {[%clk 0:00:06]} 64. Be4+ {[%clk 0:00:06]}  Kh8 {[%clk 0:00:06]} 65. Bf6+ {[%clk 0:00:06]}  Kg8 {[%clk 0:00:06]} 66. h7+ {[%clk 0:00:07]}  Kf8 {[%clk 0:00:07]} 67. h8=Q# {[%clk 0:00:07]} 1-0


[Site "https://www.chess.com"]

[Event "Titled Tuesday Blitz January 31 Late 2023"]
[White "Phillips, Rene"]
[Black "Melikhov, Evgeny V."]
[WhiteFideId "2056275"]
[BlackFideId "4122046"]
[WhiteElo "1852"]
[BlackElo "2269"]
[Result "0-1"]
[Round "03"]
[TimeControl "180+2"]
[Date "2023.01.31"]
[WhiteClock "0:00:01"]
[BlackClock "0:00:31"]

1. Nf3 {[%clk 0:03:00]}  f5 {[%clk 0:02:58]} 2. d4 {[%clk 0:02:53]}  Nf6 {[%clk 0:02:57]} 3. Bf4 {[%clk 0:02:49]}  g6 {[%clk 0:02:49]} 4. e3 {[%clk 0:02:49]}  Bg7 {[%clk 0:02:48]} 5. Bc4 {[%clk 0:02:46]}  d5 {[%clk 0:02:47]} 6. Be2 {[%clk 0:02:44]}  O-O {[%clk 0:02:40]} 7. h4 {[%clk 0:02:43]}  h6 {[%clk 0:02:33]} 8. Ne5 {[%clk 0:02:41]}  Kh7 {[%clk 0:02:23]} 9. h5 {[%clk 0:02:39]}  g5 {[%clk 0:02:22]} 10. Bh2 {[%clk 0:02:28]}  Nfd7 {[%clk 0:01:56]} 11. Ng6 {[%clk 0:02:25]}  Rf7 {[%clk 0:01:49]} 12. Nc3 {[%clk 0:02:12]}  c6 {[%clk 0:01:37]} 13. g4 {[%clk 0:02:05]}  Nf8 {[%clk 0:01:33]} 14. gxf5 {[%clk 0:01:50]}  Bxf5 {[%clk 0:01:29]} 15. Nxf8+ {[%clk 0:01:40]}  Qxf8 {[%clk 0:01:20]} 16. Bd3 {[%clk 0:01:40]}  Nd7 {[%clk 0:01:14]} 17. Bg3 {[%clk 0:01:37]}  e5 {[%clk 0:01:12]} 18. Bxf5+ {[%clk 0:01:32]}  Rxf5 {[%clk 0:01:11]} 19. Qd3 {[%clk 0:01:28]}  e4 {[%clk 0:01:08]} 20. Qe2 {[%clk 0:01:28]}  b5 {[%clk 0:00:58]} 21. O-O-O {[%clk 0:01:25]}  a5 {[%clk 0:00:57]} 22. Qg4 {[%clk 0:01:02]}  Qf7 {[%clk 0:00:50]} 23. Kb1 {[%clk 0:00:39]}  a4 {[%clk 0:00:49]} 24. a3 {[%clk 0:00:38]}  Nb6 {[%clk 0:00:48]} 25. Na2 {[%clk 0:00:37]}  Bf8 {[%clk 0:00:45]} 26. c3 {[%clk 0:00:34]}  Nc4 {[%clk 0:00:43]} 27. Nb4 {[%clk 0:00:33]}  Bxb4 {[%clk 0:00:43]} 28. cxb4 {[%clk 0:00:32]}  Rf8 {[%clk 0:00:41]} 29. Rc1 {[%clk 0:00:31]}  Qe6 {[%clk 0:00:38]} 30. Rc2 {[%clk 0:00:28]}  R8f6 {[%clk 0:00:35]} 31. Qh3 {[%clk 0:00:21]}  Rf3 {[%clk 0:00:33]} 32. Qxe6 {[%clk 0:00:20]}  Rxe6 {[%clk 0:00:33]} 33. Rh2 {[%clk 0:00:18]}  Nxe3 {[%clk 0:00:32]} 34. fxe3 {[%clk 0:00:17]}  Rxg3 {[%clk 0:00:32]} 35. Rcf2 {[%clk 0:00:12]}  Rf3 {[%clk 0:00:32]} 36. Re2 {[%clk 0:00:08]}  Ref6 {[%clk 0:00:32]} 37. Kc2 {[%clk 0:00:07]}  Rf1 {[%clk 0:00:31]} 38. Kd2 {[%clk 0:00:03]}  R6f3 {[%clk 0:00:31]} 39. Kc2 {[%clk 0:00:02]}  Kg7 {[%clk 0:00:31]} 40. Rhg2 {[%clk 0:00:01]}  Kf6 {[%clk 0:00:31]} 0-1


[Site "https://www.chess.com"]

[Event "Titled Tuesday Blitz January 31 Late 2023"]
[White "Semenenko, Dmytry"]
[Black "Slater-Jones, Henry"]
[WhiteFideId "14118645"]
[BlackFideId "3222101"]
[WhiteElo "2113"]
[BlackElo "1826"]
[Result "0-1"]
[Round "03"]
[TimeControl "180+2"]
[Date "2023.01.31"]
[WhiteClock "0:01:08"]
[BlackClock "0:01:10"]

1. Nf3 {[%clk 0:02:59]}  d5 {[%clk 0:02:59]} 2. c4 {[%clk 0:03:00]}  e6 {[%clk 0:02:58]} 3. d4 {[%clk 0:03:00]}  c6 {[%clk 0:02:58]} 4. e3 {[%clk 0:02:59]}  Nf6 {[%clk 0:02:59]} 5. Nc3 {[%clk 0:03:00]}  Be7 {[%clk 0:02:59]} 6. Bd3 {[%clk 0:03:00]}  O-O {[%clk 0:02:59]} 7. e4 {[%clk 0:03:00]}  dxe4 {[%clk 0:02:59]} 8. Nxe4 {[%clk 0:03:01]}  Nbd7 {[%clk 0:02:59]} 9. O-O {[%clk 0:03:01]}  Nxe4 {[%clk 0:02:58]} 10. Bxe4 {[%clk 0:03:01]}  Nf6 {[%clk 0:02:59]} 11. Bc2 {[%clk 0:03:01]}  c5 {[%clk 0:03:00]} 12. Bg5 {[%clk 0:03:01]}  cxd4 {[%clk 0:02:55]} 13. Qd3 {[%clk 0:03:01]}  g6 {[%clk 0:02:51]} 14. Nxd4 {[%clk 0:03:00]}  Nd7 {[%clk 0:02:36]} 15. Bh6 {[%clk 0:02:54]}  Re8 {[%clk 0:02:33]} 16. Qg3 {[%clk 0:02:51]}  Bf8 {[%clk 0:02:25]} 17. Bg5 {[%clk 0:02:49]}  Be7 {[%clk 0:02:25]} 18. Be3 {[%clk 0:02:43]}  Nf6 {[%clk 0:02:19]} 19. Rad1 {[%clk 0:02:42]}  Bd7 {[%clk 0:02:10]} 20. Nb5 {[%clk 0:02:04]}  Nh5 {[%clk 0:02:07]} 21. Qe5 {[%clk 0:01:58]}  Rc8 {[%clk 0:01:46]} 22. b3 {[%clk 0:01:48]}  a6 {[%clk 0:01:42]} 23. Nd6 {[%clk 0:01:40]}  Bxd6 {[%clk 0:01:41]} 24. Rxd6 {[%clk 0:01:38]}  Qc7 {[%clk 0:01:39]} 25. Rfd1 {[%clk 0:01:38]}  Bc6 {[%clk 0:01:39]} 26. Bd4 {[%clk 0:01:33]}  f6 {[%clk 0:01:30]} 27. Qe3 {[%clk 0:01:33]}  Qxd6 {[%clk 0:01:22]} 28. Bxf6 {[%clk 0:01:30]}  Qf4 {[%clk 0:01:17]} 29. Qc3 {[%clk 0:01:25]}  e5 {[%clk 0:01:14]} 30. g3 {[%clk 0:01:09]}  Qxf6 {[%clk 0:01:14]} 31. c5 {[%clk 0:01:08]}  Qf3 {[%clk 0:01:11]} 32. Qc4+ {[%clk 0:01:08]}  Kh8 {[%clk 0:01:10]} 0-1


[Site "https://www.chess.com"]

[Event "Titled Tuesday Blitz January 31 Late 2023"]
[White "Clawitter, Craig"]
[Black "Kraus, Tomas"]
[WhiteFideId "2023105"]
[BlackFideId "331708"]
[WhiteElo "2050"]
[BlackElo "2473"]
[Result "0-1"]
[Round "03"]
[TimeControl "180+2"]
[Date "2023.01.31"]
[WhiteClock "0:00:41"]
[BlackClock "0:01:36"]

1. e4 {[%clk 0:03:00]}  c6 {[%clk 0:02:57]} 2. d4 {[%clk 0:03:00]}  d5 {[%clk 0:02:57]} 3. e5 {[%clk 0:03:00]}  Bf5 {[%clk 0:02:56]} 4. Nf3 {[%clk 0:02:59]}  e6 {[%clk 0:02:54]} 5. Be2 {[%clk 0:02:58]}  Nd7 {[%clk 0:02:53]} 6. O-O {[%clk 0:02:57]}  Ne7 {[%clk 0:02:53]} 7. c3 {[%clk 0:02:48]}  h6 {[%clk 0:02:50]} 8. Nbd2 {[%clk 0:02:48]}  g5 {[%clk 0:02:48]} 9. Nb3 {[%clk 0:02:47]}  Ng6 {[%clk 0:02:42]} 10. Ne1 {[%clk 0:02:31]}  Nf4 {[%clk 0:02:37]} 11. Bxf4 {[%clk 0:02:28]}  gxf4 {[%clk 0:02:36]} 12. Bd3 {[%clk 0:02:23]}  Qg5 {[%clk 0:02:30]} 13. Bxf5 {[%clk 0:02:15]}  Qxf5 {[%clk 0:02:31]} 14. Nd3 {[%clk 0:02:00]}  h5 {[%clk 0:02:21]} 15. Qf3 {[%clk 0:02:00]}  Bh6 {[%clk 0:02:17]} 16. Nbc5 {[%clk 0:01:31]}  Nxc5 {[%clk 0:02:12]} 17. Nxc5 {[%clk 0:01:32]}  O-O-O {[%clk 0:02:09]} 18. a4 {[%clk 0:01:29]}  Rdg8 {[%clk 0:02:03]} 19. h3 {[%clk 0:01:18]}  Rg5 {[%clk 0:01:50]} 20. a5 {[%clk 0:01:06]}  Rhg8 {[%clk 0:01:48]} 21. a6 {[%clk 0:01:01]}  Rxg2+ {[%clk 0:01:41]} 22. Qxg2 {[%clk 0:01:02]}  Rxg2+ {[%clk 0:01:39]} 23. Kxg2 {[%clk 0:01:03]}  f3+ {[%clk 0:01:38]} 24. Kg1 {[%clk 0:00:41]}  Qg6+ {[%clk 0:01:36]} 0-1


[Site "https://www.chess.com"]

[Event "Titled Tuesday Blitz January 31 Late 2023"]
[White "Mosquera, Miguel"]
[Black "Ortez, Andrea"]
[WhiteFideId "4401131"]
[BlackFideId "6702392"]
[WhiteElo "2371"]
[BlackElo "1961"]
[Result "0-1"]
[Round "03"]
[TimeControl "180+2"]
[Date "2023.01.31"]
[WhiteClock "0:00:02"]
[BlackClock "0:00:17"]

1. e4 {[%clk 0:03:00]}  c5 {[%clk 0:02:58]} 2. Nf3 {[%clk 0:02:54]}  Nc6 {[%clk 0:02:58]} 3. d4 {[%clk 0:02:54]}  cxd4 {[%clk 0:02:59]} 4. Nxd4 {[%clk 0:02:55]}  g6 {[%clk 0:02:59]} 5. Nc3 {[%clk 0:02:50]}  Bg7 {[%clk 0:02:59]} 6. Be3 {[%clk 0:02:49]}  Nf6 {[%clk 0:02:58]} 7. Bc4 {[%clk 0:02:38]}  O-O {[%clk 0:02:57]} 8. Bb3 {[%clk 0:02:37]}  d6 {[%clk 0:02:55]} 9. f3 {[%clk 0:02:37]}  Bd7 {[%clk 0:02:55]} 10. Qd2 {[%clk 0:02:35]}  Nxd4 {[%clk 0:02:54]} 11. Bxd4 {[%clk 0:02:35]}  b5 {[%clk 0:02:55]} 12. O-O {[%clk 0:02:30]}  b4 {[%clk 0:02:53]} 13. Nd5 {[%clk 0:02:30]}  Nxd5 {[%clk 0:02:53]} 14. Bxd5 {[%clk 0:02:31]}  Bxd4+ {[%clk 0:02:49]} 15. Qxd4 {[%clk 0:02:31]}  Rc8 {[%clk 0:02:42]} 16. Rac1 {[%clk 0:02:12]}  Qc7 {[%clk 0:02:14]} 17. Qxb4 {[%clk 0:01:47]}  Rb8 {[%clk 0:02:12]} 18. Qd4 {[%clk 0:01:46]}  Rfc8 {[%clk 0:01:40]} 19. Bb3 {[%clk 0:01:30]}  a5 {[%clk 0:01:24]} 20. a4 {[%clk 0:00:42]}  Rb4 {[%clk 0:01:06]} 21. Qe3 {[%clk 0:00:39]}  Bxa4 {[%clk 0:01:03]} 22. Bxa4 {[%clk 0:00:25]}  Rxa4 {[%clk 0:01:02]} 23. c3 {[%clk 0:00:26]}  Rb8 {[%clk 0:00:51]} 24. Rb1 {[%clk 0:00:20]}  Ra2 {[%clk 0:00:45]} 25. Rf2 {[%clk 0:00:19]}  Qb7 {[%clk 0:00:38]} 26. b3 {[%clk 0:00:18]}  Rxf2 {[%clk 0:00:34]} 27. Kxf2 {[%clk 0:00:19]}  a4 {[%clk 0:00:32]} 28. b4 {[%clk 0:00:19]}  a3 {[%clk 0:00:32]} 29. Ra1 {[%clk 0:00:17]}  Ra8 {[%clk 0:00:32]} 30. Ra2 {[%clk 0:00:17]}  Qb5 {[%clk 0:00:29]} 31. Qe2 {[%clk 0:00:16]}  Qa4 {[%clk 0:00:25]} 32. Qd2 {[%clk 0:00:16]}  Qb3 {[%clk 0:00:23]} 33. h3 {[%clk 0:00:08]}  Rc8 {[%clk 0:00:19]} 34. Qc2 {[%clk 0:00:04]}  Qxc3 {[%clk 0:00:18]} 35. Qxc3 {[%clk 0:00:03]}  Rxc3 {[%clk 0:00:19]} 36. b5 {[%clk 0:00:03]}  Rb3 {[%clk 0:00:19]} 37. b6 {[%clk 0:00:04]}  Rb2+ {[%clk 0:00:17]} 38. Kg3 {[%clk 0:00:02]}  Rxa2 {[%clk 0:00:16]} 39. b7 {[%clk 0:00:03]}  Rb2 {[%clk 0:00:17]} 40. b8=Q+ {[%clk 0:00:02]}  Rxb8 {[%clk 0:00:17]} 0-1


[Site "https://www.chess.com"]

[Event "Titled Tuesday Blitz January 31 Late 2023"]
[White "Kujawski, Adam"]
[Black "Bongo Akanga Ndjila, Barthelemy"]
[WhiteFideId "1100920"]
[BlackFideId "10609431"]
[WhiteElo "2173"]
[BlackElo "1824"]
[Result "1-0"]
[Round "03"]
[TimeControl "180+2"]
[Date "2023.01.31"]
[WhiteClock "0:01:03"]
[BlackClock "0:01:45"]

1. e4 {[%clk 0:02:48]}  e6 {[%clk 0:02:57]} 2. d4 {[%clk 0:02:41]}  d5 {[%clk 0:02:58]} 3. Nc3 {[%clk 0:02:41]}  Nf6 {[%clk 0:02:57]} 4. Bg5 {[%clk 0:02:40]}  Be7 {[%clk 0:02:56]} 5. e5 {[%clk 0:02:40]}  Nfd7 {[%clk 0:02:55]} 6. Bxe7 {[%clk 0:02:41]}  Qxe7 {[%clk 0:02:56]} 7. f4 {[%clk 0:02:41]}  a6 {[%clk 0:02:56]} 8. Nf3 {[%clk 0:02:41]}  c5 {[%clk 0:02:56]} 9. Bd3 {[%clk 0:02:41]}  Nc6 {[%clk 0:02:57]} 10. dxc5 {[%clk 0:02:40]}  Nxc5 {[%clk 0:02:56]} 11. O-O {[%clk 0:02:39]}  b5 {[%clk 0:02:54]} 12. Ne2 {[%clk 0:02:37]}  Nxd3 {[%clk 0:02:47]} 13. cxd3 {[%clk 0:02:35]}  Bb7 {[%clk 0:02:45]} 14. d4 {[%clk 0:02:19]}  O-O {[%clk 0:02:44]} 15. Qd2 {[%clk 0:02:19]}  Rac8 {[%clk 0:02:43]} 16. Rfc1 {[%clk 0:02:16]}  Qc7 {[%clk 0:02:35]} 17. Rc5 {[%clk 0:01:47]}  Qb6 {[%clk 0:02:33]} 18. Rac1 {[%clk 0:01:46]}  Na5 {[%clk 0:02:33]} 19. b3 {[%clk 0:01:39]}  Bc6 {[%clk 0:02:16]} 20. Qc2 {[%clk 0:01:27]}  Qb7 {[%clk 0:02:03]} 21. Ng5 {[%clk 0:01:18]}  g6 {[%clk 0:02:02]} 22. Qc3 {[%clk 0:01:16]}  b4 {[%clk 0:01:56]} 23. Qh3 {[%clk 0:01:15]}  f6 {[%clk 0:01:50]} 24. exf6 {[%clk 0:01:12]}  Rxf6 {[%clk 0:01:46]} 25. Rxa5 {[%clk 0:01:10]}  Bb5 {[%clk 0:01:46]} 26. Rxc8+ {[%clk 0:01:04]}  Qxc8 {[%clk 0:01:45]} 27. Qxh7+ {[%clk 0:01:03]}  Kf8 {[%clk 0:01:45]} 28. Qh8+ {[%clk 0:01:03]} 1-0


[Site "https://www.chess.com"]